fUSD/lending_fUSD_20241220
["ID","MTS","AMOUNT","RATE_DAILY","PERIOD"]
[346112530,1734708652224,-500.0,0.0002356,4]
[346112531,1734708652233,-500.0,0.0002356,4]
[346112532,1734708652243,-500.0,0.0002356,4]
[346112533,1734708652252,-582.29,0.0002356,4]
[346112534,1734708652262,-511.78,0.0002356,4]
[346112535,1734708652271,-800.89,0.0002356,4]
[346112536,1734708652281,-751.77,0.0002356,4]
[346112537,1734708652291,-500.0,0.0002356,4]
[346112538,1734708652300,-1476.34,0.0002356,4]
[346112539,1734708652355,-500.0,0.0002356,4]
[346112540,1734708652366,-994.91,0.0002356,4]
[346112541,1734708652378,-500.0,0.0002356,4]
[346112542,1734708652388,-500.0,0.0002356,4]
[346112543,1734708652397,-500.0,0.0002356,4]
[346112544,1734708652407,-820.85,0.0002356,4]
[346112545,1734708652416,-1568.07,0.0002356,4]
[346112546,1734708652425,-514.24,0.0002356,4]
[346112547,1734708652434,-500.0,0.0002356,4]
[346112548,1734708652444,-500.0,0.0002356,4]
[346112549,1734708652453,-500.0,0.0002356,4]
[346112550,1734708652463,-821.18,0.0002356,4]
[346112551,1734708652472,-500.0,0.0002356,4]
[346112552,1734708652482,-500.0,0.0002356,4]
[346112553,1734708652491,-568.89,0.0002356,4]
[346112554,1734708652501,-500.0,0.0002356,4]
[346112555,1734708652510,-500.0,0.0002356,4]
[346112556,1734708652519,-685.14,0.0002356,4]
[346112557,1734708652528,-507.43,0.0002356,4]
[346112558,1734708652537,-864.14,0.0002356,4]
[346112559,1734708652547,-500.0,0.0002356,4]
[346112560,1734708652557,-500.0,0.0002356,4]
[346112561,1734708652566,-765.98,0.0002356,4]
[346112562,1734708652575,-500.0,0.0002356,4]
[346112563,1734708652585,-1025.07,0.0002356,4]
[346112564,1734708652594,-728.54,0.0002356,4]
[346112565,1734708652604,-500.0,0.0002356,4]
[346112566,1734708652612,-500.0,0.0002356,4]
[346112567,1734708652622,-508.74,0.0002356,4]
[346112568,1734708652631,-500.0,0.0002356,4]
[346112569,1734708652639,-3628.92,0.0002356,4]
[346112570,1734708652649,-832.7,0.0002356,4]
[346112571,1734708652658,-500.0,0.0002356,4]
[346112572,1734708652667,-500.0,0.0002356,4]
[346112573,1734708652676,-500.0,0.0002356,4]
[346112574,1734708652686,-1222.31,0.0002356,4]
[346112575,1734708652695,-500.0,0.0002356,4]
[346112576,1734708652704,-157.67225218,0.0002356,4]
[346112577,1734708652713,-1245.95,0.0002356,4]
[346112578,1734708652723,-601.16,0.0002356,4]
[346112579,1734708652732,-500.0,0.0002356,4]
[346112580,1734708652741,-500.0,0.0002356,4]
[346112581,1734708652751,-997.76,0.0002356,4]
[346112582,1734708652760,-500.0,0.0002356,4]
[346112583,1734708652769,-4338.76,0.0002356,4]
[346112584,1734708652779,-500.0,0.0002356,4]
[346112585,1734708652788,-500.0,0.0002356,4]
[346112586,1734708652798,-500.0,0.0002356,4]
[346112587,1734708652807,-500.0,0.0002356,4]
[346112588,1734708652816,-602.56,0.0002356,4]
[346112589,1734708652826,-500.0,0.0002356,4]
[346112590,1734708652835,-4322.79,0.0002356,4]
[346112591,1734708652845,-643.35,0.0002356,4]
[346112592,1734708652854,-757.49,0.0002356,4]
[346112593,1734708652863,-926.41,0.0002356,4]
[346112594,1734708652872,-500.0,0.0002356,4]
[346112595,1734708652881,-500.0,0.0002356,4]
[346112596,1734708652890,-1635.36,0.0002356,4]
[346112597,1734708652900,-764.22,0.0002356,4]
[346112598,1734708652909,-500.0,0.0002356,4]
[346112599,1734708652919,-500.0,0.0002356,4]
[346112600,1734708652928,-500.0,0.0002356,4]
[346112601,1734708652937,-1000.0,0.0002356,4]
[346112602,1734708652946,-517.74,0.0002356,4]
[346112603,1734708652955,-1796.74,0.0002356,4]
[346112604,1734708652964,-500.0,0.0002356,4]
[346112605,1734708652973,-500.0,0.0002356,4]
[346112606,1734708652982,-2191.15,0.0002356,4]
[346112607,1734708652992,-500.0,0.0002356,4]
[346112608,1734708653001,-1575.91,0.0002356,4]
[346112609,1734708653010,-500.0,0.0002356,4]
[346112610,1734708653019,-1376.54,0.0002356,4]
[346112611,1734708653029,-708.87,0.0002356,4]
[346112612,1734708653038,-500.0,0.0002356,4]
[346112613,1734708653048,-500.0,0.0002356,4]
[346112614,1734708653059,-500.0,0.0002356,4]
[346112615,1734708653069,-523.07,0.0002356,4]
[346112616,1734708653079,-500.0,0.0002356,4]
[346112617,1734708653088,-1072.88,0.0002356,4]
[346112618,1734708653098,-500.0,0.0002356,4]
[346112619,1734708653107,-500.0,0.0002356,4]
[346112620,1734708653117,-500.0,0.0002356,4]
[346112621,1734708653126,-744.56,0.0002356,4]
[346112622,1734708653135,-500.0,0.0002356,4]
[346112623,1734708653144,-500.0,0.0002356,4]
[346112624,1734708653154,-519.52,0.0002356,4]
[346112625,1734708653163,-500.0,0.0002356,4]
[346112626,1734708653172,-546.74,0.0002356,4]
[346112627,1734708653182,-784.97,0.0002356,4]
[346112628,1734708653191,-395.32719936,0.0002356,4]
[346112629,1734708653200,-610.51,0.0002356,4]
[346112630,1734708653209,-500.0,0.00023561,4]
[346112631,1734708653219,-500.0,0.00023561,4]
[346112632,1734708653228,-500.0,0.00023561,4]
[346112633,1734708653237,-500.0,0.00023561,4]
[346112634,1734708653246,-351.16354724,0.00023561,4]
[346112635,1734708653255,-500.0,0.00023561,4]
[346112636,1734708653265,-500.0,0.00023561,4]
[346112637,1734708653274,-500.0,0.00023561,4]
[346112638,1734708653285,-500.0,0.00023561,4]
[346112639,1734708653295,-500.0,0.00023561,4]
[346112640,1734708653305,-386.99216793,0.00023561,4]
[346112641,1734708653315,-540.95,0.00023561,4]
[346112642,1734708653324,-465.36106656,0.00023561,4]
[346112643,1734708653333,-500.0,0.00023561,4]
[346112644,1734708653342,-1000.0,0.00023561,5]
[346112645,1734708653353,-500.0,0.00023561,4]
[346112646,1734708653364,-500.0,0.00023561,4]
[346112647,1734708653373,-500.0,0.00023561,4]
[346112648,1734708653383,-506.5,0.00023561,4]
[346112649,1734708653391,-648.86356008,0.00023561,2]
[346112650,1734708653402,-500.0,0.00023561,4]
[346112651,1734708653411,-500.0,0.00023561,4]
[346112652,1734708653421,-500.0,0.00023561,4]
[346112653,1734708653431,-500.0,0.00023561,4]
[346112654,1734708653440,-500.0,0.00023561,4]
[346112655,1734708653451,-500.0,0.00023561,4]
[346112656,1734708653461,-500.0,0.00023561,4]
[346112657,1734708653471,-500.0,0.00023561,4]
[346112658,1734708653481,-500.0,0.00023561,4]
[346112659,1734708653490,-500.0,0.00023561,4]
[346112660,1734708653499,-500.0,0.00023561,4]
[346112661,1734708653508,-500.0,0.00023561,4]
[346112662,1734708653517,-500.0,0.00023561,4]
[346112663,1734708653527,-527.4,0.00023561,4]
[346112664,1734708653536,-644.44,0.00023561,4]
[346112665,1734708653546,-1110.94,0.00023561,4]
[346112666,1734708653556,-943.11,0.00023561,4]
[346112667,1734708653566,-631.39,0.00023561,4]
[346112668,1734708653575,-1228.25,0.00023561,4]
[346112669,1734708653584,-743.84,0.00023561,4]
[346112670,1734708653593,-500.0,0.00023561,4]
[346112671,1734708653603,-500.0,0.00023561,4]
[346112672,1734708653612,-500.0,0.00023561,4]
[346112673,1734708653621,-500.0,0.00023561,4]
[346112674,1734708653630,-4830.56,0.00023561,4]
[346112675,1734708653640,-672.72,0.00023561,4]
[346112676,1734708653649,-500.0,0.00023561,4]
[346112677,1734708653659,-500.0,0.00023561,4]
[346112678,1734708653668,-518.05,0.00023561,4]
[346112679,1734708653677,-547.63536405,0.00023561,4]
[346112680,1734708653687,-500.0,0.00023561,4]
[346112681,1734708653696,-989.78,0.00023561,4]
[346112682,1734708653706,-500.0,0.00023561,4]
[346112683,1734708653715,-500.0,0.00023561,4]
[346112684,1734708653724,-159.93905221,0.0002361,2]
[346112685,1734708653734,-2742.09415761,0.0002364,2]
[346112686,1734708653744,-153.0,0.00023642,2]
[346112687,1734708653754,-153.0,0.00023642,2]
[346112688,1734708653763,-153.0,0.00023642,2]
[346112689,1734708653772,-153.0,0.00023642,2]
[346112690,1734708653782,-153.0,0.00023642,2]
[346112691,1734708653791,-153.0,0.00023642,2]
[346112692,1734708653800,-153.0,0.00023642,2]
[346112693,1734708653810,-153.0,0.00023642,2]
[346112694,1734708653820,-153.0,0.00023642,2]
[346112695,1734708653829,-153.0,0.00023642,2]
[346112696,1734708653838,-153.0,0.00023642,2]
[346112697,1734708653847,-153.0,0.00023642,2]
[346112698,1734708653857,-156.61,0.00023678,30]
[346112699,1734708653867,-500.0,0.000237,2]
[346112700,1734708653876,-500.0,0.000237,2]
[346112701,1734708653886,-500.0,0.000237,2]
[346112702,1734708653896,-500.0,0.000237,2]
[346112703,1734708653905,-500.0,0.000237,2]
[346112704,1734708653915,-230.0,0.000237,2]
[346112705,1734708653925,-522.24515155,0.000237,2]
[346112706,1734708653934,-150.0,0.00023731,2]
[346112707,1734708653944,-992.88,0.00023739,2]
[346112708,1734708653954,-150.0,0.00023753,2]
[346112709,1734708653963,-150.0,0.00023762,2]
[346112710,1734708653972,-150.0,0.00023769,2]
[346112711,1734708653982,-150.0,0.00023772,2]
[346112712,1734708653994,-150.0,0.00023794,2]
[346112713,1734708654003,-150.0,0.00023797,2]
[346112714,1734708654012,-150.0,0.00023798,2]
[346112715,1734708654021,-500.0,0.00023808,2]
[346112716,1734708654030,-150.0,0.00023816,2]
[346112717,1734708654040,-150.0,0.00023816,2]
[346112718,1734708654049,-202.42614027,0.00023816,2]
[346112719,1734708654059,-17624.27998854,0.00023818,3]
[346112720,1734708654068,-972.99413731,0.0002382,2]
[346112721,1734708654078,-150.0,0.00023821,2]
[346112722,1734708654088,-150.0,0.00023821,2]
[346112723,1734708654098,-150.0,0.00023823,2]
[346112724,1734708654108,-150.0,0.00023825,2]
[346112725,1734708654117,-150.0,0.00023828,2]
[346112726,1734708654127,-500.0,0.00023834,4]
[346112727,1734708654136,-500.0,0.00023834,4]
[346112728,1734708654145,-500.0,0.00023834,4]
[346112729,1734708654154,-263.90127445,0.00023834,4]
[346112730,1734708654164,-500.0,0.00023834,4]
[346112731,1734708654173,-500.0,0.00023834,4]
[346112732,1734708654183,-500.0,0.00023834,4]
[346112733,1734708654193,-500.0,0.00023834,4]
[346112734,1734708654202,-345.1044668,0.00023834,4]
[346112735,1734708654211,-500.0,0.00023834,4]
[346112736,1734708654220,-500.0,0.00023834,4]
[346112737,1734708654230,-500.0,0.00023834,4]
[346112738,1734708654239,-500.0,0.00023834,4]
[346112739,1734708654249,-500.0,0.00023834,4]
[346112740,1734708654258,-613.58,0.00023834,4]
[346112741,1734708654268,-500.0,0.00023834,4]
[346112742,1734708654277,-500.0,0.00023834,4]
[346112743,1734708654287,-500.0,0.00023834,4]
[346112744,1734708654297,-156.913729,0.00023834,4]
[346112745,1734708654307,-500.0,0.00023834,4]
[346112746,1734708654319,-500.0,0.00023834,4]
[346112747,1734708654332,-555.01627442,0.00023834,4]
[346112748,1734708654341,-500.0,0.00023834,4]
[346112749,1734708654351,-500.0,0.00023834,4]
[346112750,1734708654360,-500.0,0.00023834,4]
[346112751,1734708654372,-500.0,0.00023834,4]
[346112752,1734708654382,-386.51698264,0.00023834,4]
[346112753,1734708654391,-500.0,0.00023834,4]
[346112754,1734708654402,-227.19801661,0.00023834,4]
[346112755,1734708654413,-500.0,0.00023834,4]
[346112756,1734708654422,-500.0,0.00023834,4]
[346112757,1734708654431,-500.0,0.00023834,4]
[346112758,1734708654442,-500.0,0.00023834,4]
[346112759,1734708654451,-500.0,0.00023834,4]
[346112760,1734708654461,-582.29,0.00023834,4]
[346112761,1734708654470,-511.78,0.00023834,4]
[346112762,1734708654479,-800.89,0.00023834,4]
[346112763,1734708654488,-751.77,0.00023834,4]
[346112764,1734708654498,-307.73256193,0.00023834,4]
[346112765,1734708654507,-1476.34,0.00023834,4]
[346112766,1734708654517,-500.0,0.00023834,4]
[346112767,1734708654527,-994.91,0.00023834,4]
[346112768,1734708654537,-500.0,0.00023834,4]
[346112769,1734708654546,-500.0,0.00023834,4]
[346112770,1734708654559,-500.0,0.00023834,4]
[346112771,1734708654568,-820.85,0.00023834,4]
[346112772,1734708654577,-1568.07,0.00023834,4]
[346112773,1734708654586,-514.24,0.00023834,4]
[346112774,1734708654595,-500.0,0.00023834,4]
[346112775,1734708654605,-500.0,0.00023834,4]
[346112776,1734708654615,-500.0,0.00023834,4]
[346112777,1734708654624,-821.18,0.00023834,4]
[346112778,1734708654632,-500.0,0.00023834,4]
[346112779,1734708654642,-562.24,0.00023834,4]
[346112780,1734708654651,-568.89,0.00023834,4]
[346112781,1734708654661,-500.0,0.00023834,4]
[346112782,1734708654671,-500.0,0.00023834,4]
[346112783,1734708654680,-685.14,0.00023834,4]
[346112784,1734708654690,-507.43,0.00023834,4]
[346112785,1734708654699,-864.14,0.00023834,4]
[346112786,1734708654709,-398.27,0.00023834,4]
[346112787,1734708654719,-500.0,0.00023834,4]
[346112788,1734708654729,-765.98,0.00023834,4]
[346112789,1734708654739,-500.0,0.00023834,4]
[346112790,1734708654748,-1025.07,0.00023834,4]
[346112791,1734708654759,-728.54,0.00023834,4]
[346112792,1734708654768,-500.0,0.00023834,4]
[346112793,1734708654778,-500.0,0.00023834,4]
[346112794,1734708654787,-508.74,0.00023834,4]
[346112795,1734708654797,-500.0,0.00023834,4]
[346112796,1734708654809,-832.7,0.00023834,4]
[346112797,1734708654818,-500.0,0.00023834,4]
[346112798,1734708654828,-500.0,0.00023834,4]
[346112799,1734708654837,-3628.92,0.00023834,4]
[346112800,1734708654847,-500.0,0.00023834,4]
[346112801,1734708654856,-1222.31,0.00023834,4]
[346112802,1734708654866,-500.0,0.00023834,4]
[346112803,1734708654875,-1245.95,0.00023834,4]
[346112804,1734708654885,-601.16,0.00023834,4]
[346112805,1734708654894,-500.0,0.00023834,4]
[346112806,1734708654904,-500.0,0.00023834,4]
[346112807,1734708654913,-997.76,0.00023834,4]
[346112808,1734708654923,-500.0,0.00023834,4]
[346112809,1734708654932,-4338.76,0.00023834,4]
[346112810,1734708654942,-500.0,0.00023834,4]
[346112811,1734708654951,-500.0,0.00023834,4]
[346112812,1734708654960,-500.0,0.00023834,4]
[346112813,1734708654970,-500.0,0.00023834,4]
[346112814,1734708654980,-602.56,0.00023834,4]
[346112815,1734708654989,-500.0,0.00023834,4]
[346112816,1734708654998,-4322.79,0.00023834,4]
[346112817,1734708655008,-643.35,0.00023834,4]
[346112818,1734708655018,-757.49,0.00023834,4]
[346112819,1734708655027,-926.41,0.00023834,4]
[346112820,1734708655036,-500.0,0.00023834,4]
[346112821,1734708655045,-500.0,0.00023834,4]
[346112822,1734708655054,-1635.36,0.00023834,4]
[346112823,1734708655065,-764.22,0.00023834,4]
[346112824,1734708655075,-500.0,0.00023834,4]
[346112825,1734708655084,-500.0,0.00023834,4]
[346112826,1734708655094,-500.0,0.00023834,4]
[346112827,1734708655103,-1000.0,0.00023834,4]
[346112828,1734708655113,-517.74,0.00023834,4]
[346112829,1734708655123,-1796.74,0.00023834,4]
[346112830,1734708655132,-500.0,0.00023834,4]
[346112831,1734708655142,-500.0,0.00023834,4]
[346112832,1734708655151,-2191.15,0.00023834,4]
[346112833,1734708655160,-500.0,0.00023834,4]
[346112834,1734708655169,-1575.91,0.00023834,4]
[346112835,1734708655178,-500.0,0.00023834,4]
[346112836,1734708655187,-1376.54,0.00023834,4]
[346112837,1734708655197,-708.87,0.00023834,4]
[346112838,1734708655207,-500.0,0.00023834,4]
[346112839,1734708655216,-391.0,0.00023834,2]
[346112840,1734708655226,-500.0,0.00023834,4]
[346112841,1734708655235,-500.0,0.00023834,4]
[346112842,1734708655245,-523.07,0.00023834,4]
[346112843,1734708655256,-500.0,0.00023834,4]
[346112844,1734708655266,-1072.88,0.00023834,4]
[346112845,1734708655275,-500.0,0.00023834,4]
[346112846,1734708655285,-500.0,0.00023834,4]
[346112847,1734708655294,-500.0,0.00023834,4]
[346112848,1734708655304,-744.56,0.00023834,4]
[346112849,1734708655315,-500.0,0.00023834,4]
[346112850,1734708655324,-500.0,0.00023834,4]
[346112851,1734708655333,-519.52,0.00023834,4]
[346112852,1734708655343,-500.0,0.00023834,4]
[346112853,1734708655353,-546.74,0.00023834,4]
[346112854,1734708655363,-784.97,0.00023834,4]
[346112855,1734708655375,-610.51,0.00023834,4]
[346112856,1734708655384,-500.0,0.00023835,4]
[346112857,1734708655394,-500.0,0.00023835,4]
[346112858,1734708655405,-500.0,0.00023835,4]
[346112859,1734708655415,-500.0,0.00023835,4]
[346112860,1734708655424,-500.0,0.00023835,4]
[346112861,1734708655433,-500.0,0.00023835,4]
[346112862,1734708655443,-500.0,0.00023835,4]
[346112863,1734708655453,-311.16729841,0.00023835,4]
[346112864,1734708655462,-228.97705725,0.00023835,4]
[346112865,1734708655471,-540.95,0.00023835,4]
[346112866,1734708655480,-500.0,0.00023835,4]
[346112867,1734708655489,-1000.0,0.00023835,5]
[346112868,1734708655498,-500.0,0.00023835,4]
[346112869,1734708655507,-500.0,0.00023835,4]
[346112870,1734708655516,-500.0,0.00023835,4]
[346112871,1734708655525,-506.5,0.00023835,4]
[346112872,1734708655535,-500.0,0.00023835,4]
[346112873,1734708655544,-500.0,0.00023835,4]
[346112874,1734708655553,-500.0,0.00023835,4]
[346112875,1734708655564,-500.0,0.00023835,4]
[346112876,1734708655573,-500.0,0.00023835,4]
[346112877,1734708655583,-500.0,0.00023835,4]
[346112878,1734708655592,-500.0,0.00023835,4]
[346112879,1734708655602,-500.0,0.00023835,4]
[346112880,1734708655611,-500.0,0.00023835,4]
[346112881,1734708655621,-500.0,0.00023835,4]
[346112882,1734708655631,-500.0,0.00023835,4]
[346112883,1734708655640,-500.0,0.00023835,4]
[346112884,1734708655650,-500.0,0.00023835,4]
[346112885,1734708655660,-527.4,0.00023835,4]
[346112886,1734708655670,-644.44,0.00023835,4]
[346112887,1734708655680,-1110.94,0.00023835,4]
[346112888,1734708655689,-943.11,0.00023835,4]
[346112889,1734708655699,-631.39,0.00023835,4]
[346112890,1734708655709,-1228.25,0.00023835,4]
[346112891,1734708655720,-743.84,0.00023835,4]
[346112892,1734708655730,-500.0,0.00023835,4]
[346112893,1734708655740,-500.0,0.00023835,4]
[346112894,1734708655750,-500.0,0.00023835,4]
[346112895,1734708655759,-500.0,0.00023835,4]
[346112896,1734708655769,-4830.56,0.00023835,4]
[346112897,1734708655778,-672.72,0.00023835,4]
[346112898,1734708655788,-500.0,0.00023835,4]
[346112899,1734708655798,-500.0,0.00023835,4]
[346112900,1734708655808,-518.05,0.00023835,4]
[346112901,1734708655820,-500.0,0.00023835,4]
[346112902,1734708655829,-989.78,0.00023835,4]
[346112903,1734708655839,-500.0,0.00023835,4]
[346112904,1734708655849,-500.0,0.00023835,4]
[346112905,1734708655858,-150.0,0.00023838,2]
[346112906,1734708655867,-500.0,0.00023848,120]
[346112907,1734708655876,-2130.823606,0.00023848,120]
[346112908,1734708655885,-294.783335,0.00023848,120]
[346112909,1734708655895,-256.192215,0.00023858,15]
[346112910,1734708655907,-150.0,0.00023858,2]
[346112911,1734708655917,-150.0,0.00023868,2]
[346112912,1734708655926,-150.0,0.00023879,2]
[346112913,1734708655935,-153.0,0.00023881,2]
[346112914,1734708655944,-153.0,0.00023881,2]
[346112915,1734708655953,-153.0,0.00023881,2]
[346112916,1734708655963,-153.0,0.00023881,2]
[346112917,1734708655972,-153.0,0.00023881,2]
[346112918,1734708655982,-153.0,0.00023881,2]
[346112919,1734708655991,-150.0,0.00023882,2]
[346112920,1734708656001,-150.0,0.00023883,2]
[346112921,1734708656011,-8569.7567,0.000239,2]
[346112922,1734708656021,-67915.65338384,0.000239,2]
[346112923,1734708656030,-3000.0,0.000239,2]
[346112924,1734708656040,-5800.0,0.000239,2]
[346112925,1734708656050,-962.82502633,0.000239,2]
[346112926,1734708656063,-150.0,0.00023911,2]
[346112927,1734708656073,-300.0,0.00023915,2]
[346112928,1734708656084,-150.0,0.00023917,2]
[346112929,1734708656094,-150.0,0.00023918,2]
[346112930,1734708656105,-150.0,0.00023923,2]
[346112931,1734708656115,-150.0,0.00023924,2]
[346112932,1734708656126,-150.0,0.00023932,2]
[346112933,1734708656136,-770.21,0.00023933,2]
[346112934,1734708656145,-436.8,0.00023933,2]
[346112935,1734708656155,-150.0,0.00023933,2]
[346112936,1734708656165,-150.0,0.00023946,2]
[346112937,1734708656175,-2107.95707013,0.0002396,120]
[346112938,1734708656185,-150.0,0.00023987,2]
[346112939,1734708656195,-150.0,0.00023988,2]
[346112940,1734708656204,-150.0,0.00023993,2]
[346112941,1734708656213,-1098.3335055,0.00023996,2]
[346112942,1734708656223,-1133.1587541,0.00023996,2]
[346112943,1734708656242,-150.0,0.00023997,2]
[346112944,1734708656255,-1021.36706913,0.00023999,10]
[346112945,1734708656266,-500.0,0.00023999,2]
[346112946,1734708656276,-3448305.00782168,0.00024,3]
[346112947,1734708656527,-359.46753516,0.00024,3]
[346112948,1734708656540,-105113.22911169,0.00024,3]
[346112949,1734708656553,-2840.60723014,0.00024,3]
[346112950,1734708656569,-655.655,0.00024,3]
[346112951,1734708656580,-1569.23558,0.00024,3]
[346112952,1734708656592,-968.2,0.00024,3]
[346112953,1734708656609,-9824.77463592,0.00024,3]
[346112954,1734708656620,-9724.29607577,0.00024,3]
[346112955,1734708656667,-3080.58790394,0.00024,3]
[346112956,1734708656678,-48239.5,0.00024,3]
[346112957,1734708656690,-97705.25824825,0.00024,3]
[346112958,1734708656781,-500.0,0.00021917,4]
[346112959,1734708656791,-2028.15360176,0.00024,3]
[346112960,1734708656803,-9343.56639824,0.00024,3]
[346112961,1734708656820,-3544.89598403,0.00024,3]
[346112962,1734708656833,-298.2975,0.00024,3]
[346112963,1734708656846,-669.0756367,0.00024,3]
[346112964,1734708656862,-42510.82257155,0.00024,3]
[346112965,1734708656873,-820.44140577,0.00024,3]
[346112966,1734708656886,-870.506235,0.00024,3]
[346112967,1734708656898,-446.8668996,0.00024,3]
[346112968,1734708656927,-3391.34484441,0.00024,3]
[346112969,1734708656938,-3386.03706627,0.00024,3]
[346112970,1734708657090,-608.11212382,0.00024,3]
[346112971,1734708657127,-15442.78206701,0.00024,3]
[346112972,1734708657139,-11175.054306,0.00024,3]
[346112973,1734708657151,-534.0425677,0.00024,3]
[346112974,1734708657162,-671.07000009,0.00024,3]
[346112975,1734708657180,-5164.52983643,0.00024,3]
[346112976,1734708657421,-1170.0,0.00018757,2]
[346112977,1734708657431,-154.608058,0.00021917,4]
[346112978,1734708657442,-500.0,0.00021917,4]
[346112979,1734708657453,-31.391942,0.00022191,4]
[346112980,1734708657467,-123.216116,0.00022191,4]
[346112981,1734708657478,-199.37,0.00022191,4]
[346112982,1734708657488,-154.608058,0.00022739,4]
[346112983,1734708657499,-154.608058,0.00023013,4]
[346112984,1734708657509,-154.608058,0.00023287,4]
[346112985,1734708657519,-154.608058,0.00023835,4]
[346112986,1734708657529,-5678.85310112,0.00024,3]
[346112987,1734708657539,-3841.30000261,0.00024,3]
[346112988,1734708657552,-2341.89424266,0.00024,3]
[346112989,1734708657568,-55649.6272,0.00024,3]
[346112990,1734708657594,-10974.97004243,0.00024,3]
[346112991,1734708657605,-67507.41442555,0.00024,5]
[346112992,1734708657618,-1018736.20333687,0.00024,5]
[346112993,1734708657635,-6529.43441779,0.00024,5]
[346112994,1734708657648,-967.018,0.00024,5]
[346112995,1734708657666,-1710.5933239,0.00024,5]
[346112996,1734708657955,-1066.86275335,0.00021757,2]
[346112997,1734708657972,-79.53024665,0.00021757,2]
[346112998,1734708657984,-457.00711509,0.00021917,4]
[346112999,1734708658004,-42.99288491,0.00021917,4]
[346113000,1734708658016,-998.89941132,0.00023763,2]
[346113001,1734708658027,-18361.5323941,0.00024,5]
[346113002,1734708658041,-1941.76134776,0.00024,5]
[346113003,1734708658056,-3658.55757206,0.00024,5]
[346113004,1734708658100,-150.0,0.00018059,2]
[346113005,1734708658111,-153.0,0.00023642,2]
[346113006,1734708658122,-1389.60782001,0.00024,5]
[346113007,1734708658136,-806.10305064,0.00024,5]
[346113008,1734708658150,-3081.86669093,0.00024,5]
[346113009,1734708694299,-1000.0,0.000129,2]
[346113010,1734708694327,-549.08,0.00012999,2]
[346113018,1734708737839,1450.92,0.000129,2]
[346113019,1734708963927,152.4,0.00010137,2]
[346113021,1734709202564,150.0,0.00010137,2]
[346113022,1734709202748,150.87130879,0.00010137,2]
[346113023,1734709295423,1500.0,0.00015,10]
[346113024,1734709295448,8500.0,0.00015,10]
[346113025,1734709305088,10000.0,0.00015,10]
[346113054,1734709773165,156.61,0.00020302,30]
[346113055,1734709811305,30000.0,0.000127,2]
[346113079,1734709832301,-1000.0,0.000129,2]
[346113080,1734709832311,-450.0,0.00013,2]
[346113081,1734709832321,-196.99570568,0.00014814,2]
[346113082,1734709832330,-699.62836696,0.000149,2]
[346113083,1734709832340,-699.62836696,0.00014914,2]
[346113084,1734709832350,-500.0,0.00015,2]
[346113085,1734709832359,-800.0,0.00015014,2]
[346113086,1734709832369,-150.0,0.00016986,2]
[346113087,1734709832379,-430.36236151,0.00017,2]
[346113088,1734709832392,-119.63763849,0.00017,2]